bitfinex-derivatives/quotes_BTCF0:USTF0_20250929
["timestamp","ask_amount","ask_price","bid_price","bid_amount"]
[1759155119988,1.682143,113750.0,113740.0,0.1311112]
[1759155120290,2.23008461,113750.0,113740.0,0.04324]
[1759155120480,2.23008461,113750.0,113740.0,0.1311107]
[1759155120881,1.59468,113750.0,113740.0,0.1311107]
[1759155121078,1.6821436,113750.0,113740.0,0.1311107]
[1759155121285,1.6825436,113750.0,113740.0,0.1311107]
[1759155121690,1.6825436,113750.0,113740.0,0.04324]
[1759155121887,2.23008521,113750.0,113740.0,0.02031]
[1759155122092,2.23008521,113750.0,113740.0,0.05106136]
[1759155122586,2.23004521,113750.0,113740.0,0.05106136]
[1759155123185,2.23004521,113750.0,113740.0,0.02031]
[1759155123588,2.23004521,113750.0,113740.0,0.05106136]
[1759155123892,2.23004521,113750.0,113740.0,0.02031]
[1759155124085,0.8098636,113750.0,113740.0,0.02031]
[1759155124286,2.22996521,113750.0,113740.0,0.1311113]
[1759155124486,2.22956521,113750.0,113740.0,0.04324]
[1759155124886,2.22956521,113750.0,113740.0,0.1311113]
[1759155125086,1.6824236,113750.0,113740.0,0.1311113]
[1759155125703,2.22992521,113750.0,113740.0,0.1311113]
[1759155127284,1.35740521,113750.0,113740.0,0.1311113]
[1759155127486,1.59412,113750.0,113740.0,0.1311113]
[1759155127686,1.26954161,113750.0,113740.0,0.1311113]
[1759155127895,2.22984521,113750.0,113740.0,0.1311113]
[1759155128091,1.6823036,113750.0,113740.0,0.1311113]
[1759155128796,2.22984521,113750.0,113740.0,0.1311113]
[1759155129991,2.22984521,113750.0,113740.0,0.02031]
[1759155130294,2.22984521,113750.0,113740.0,0.04324]
[1759155130790,1.35744521,113750.0,113740.0,0.1311113]
[1759155130989,0.8095036,113750.0,113740.0,0.1311113]
[1759155131190,0.87272,113750.0,113740.0,0.1311113]
[1759155131495,0.87232,113750.0,113740.0,0.1311113]
[1759155131690,0.87272,113750.0,113740.0,0.1311113]
[1759155132086,0.9605836,113750.0,113740.0,0.1311113]
[1759155132296,1.3213836,113750.0,113740.0,0.1311113]
[1759155133198,1.23352,113750.0,113740.0,0.5311113]
[1759155133388,0.4491036,113750.0,113740.0,0.5311113]
[1759155133589,1.3213036,113750.0,113740.0,0.5311113]
[1759155134590,1.3213036,113750.0,113740.0,0.1311113]
[1759155135596,1.23344,113750.0,113740.0,0.1311113]
[1759155136391,1.23324,113750.0,113740.0,0.1311113]
[1759155136898,1.3211036,113750.0,113740.0,0.1311113]
[1759155137599,0.36124,113750.0,113740.0,0.1311113]
[1759155137791,0.00044,113750.0,113740.0,1.47020427]
[1759155138096,4e-05,113750.0,113740.0,2.34212427]
[1759155138286,0.3616,113770.0,113760.0,0.1235358]
[1759155138491,0.3608,113770.0,113760.0,0.67107741]
[1759155138697,1.23268,113780.0,113770.0,0.1235281]
[1759155139398,0.3608,113780.0,113770.0,0.1235281]
[1759155139597,0.3612,113780.0,113770.0,0.1235281]
[1759155139793,0.3608,113780.0,113770.0,0.67106971]
[1759155139994,0.3612,113780.0,113770.0,0.67106971]
[1759155140195,0.3608,113780.0,113770.0,0.1235281]
[1759155140598,0.3612,113780.0,113770.0,0.1235281]
[1759155140793,0.0004,113780.0,113770.0,0.1235281]
[1759155141602,0.3612,113780.0,113770.0,0.1235281]
[1759155141798,0.4490404,113780.0,113770.0,0.1235281]
[1759155142098,0.3612,113780.0,113770.0,0.1235281]
[1759155142294,0.4490404,113780.0,113770.0,0.1235281]
[1759155142799,0.99658201,113780.0,113770.0,0.1235281]
[1759155143001,0.99658201,113780.0,113770.0,0.03568]
[1759155143201,0.99662201,113780.0,113770.0,0.1235281]
[1759155143400,0.4490804,113780.0,113770.0,0.1235281]
[1759155143599,0.36124,113780.0,113770.0,0.1235281]
[1759155143798,1.23272,113780.0,113770.0,0.1235281]
[1759155144105,0.36124,113780.0,113770.0,0.15427946]
[1759155144298,0.36124,113780.0,113770.0,0.1235281]
[1759155144602,0.36084,113780.0,113770.0,0.1235281]
[1759155144798,0.36124,113780.0,113770.0,0.1235281]
[1759155145004,0.36124,113780.0,113770.0,0.15427946]
[1759155145204,0.00044,113780.0,113770.0,0.15427946]
[1759155146004,0.36124,113780.0,113770.0,0.1235281]
[1759155146599,0.00044,113780.0,113770.0,0.15427946]
[1759155146801,0.00044,113780.0,113770.0,1.46262107]
[1759155147008,4e-05,113780.0,113770.0,1.46262107]
[1759155147302,4e-05,113780.0,113770.0,2.37989834]
[1759155147500,0.00044,113780.0,113770.0,1.50865834]
[1759155147706,0.00044,113780.0,113770.0,1.78627946]
[1759155148094,0.00044,113780.0,113770.0,1.42543946]
[1759155148297,0.00044,113780.0,113770.0,0.55427946]
[1759155148905,0.00044,113780.0,113770.0,1.42535946]
[1759155149102,0.00044,113780.0,113770.0,0.55427946]
[1759155149491,0.00044,113780.0,113770.0,0.1235281]
[1759155151006,0.36124,113780.0,113770.0,0.1235281]
[1759155151398,0.00044,113780.0,113770.0,0.1235281]
[1759155152004,4e-05,113780.0,113770.0,1.07106971]
[1759155152203,0.00044,113780.0,113770.0,0.5235281]
[1759155152603,4e-05,113780.0,113770.0,0.55427946]
[1759155152805,0.00044,113780.0,113770.0,1.10182107]
[1759155153004,4e-05,113780.0,113770.0,0.55427946]
[1759155153206,0.00044,113780.0,113770.0,0.55427946]
[1759155154499,0.00044,113780.0,113770.0,1.3942481]
[1759155154702,0.00044,113780.0,113770.0,0.1235281]
[1759155154907,0.00044,113780.0,113770.0,0.9941681]
[1759155155900,0.00044,113780.0,113770.0,1.54170971]
[1759155156103,4e-05,113780.0,113770.0,0.9941681]
[1759155156299,0.00044,113780.0,113770.0,0.9941681]
[1759155157101,0.00044,113780.0,113770.0,1.42924367]
[1759155157406,0.00044,113780.0,113770.0,1.45999503]
[1759155157603,4e-05,113780.0,113770.0,1.02491946]
[1759155157803,0.00044,113780.0,113770.0,0.15427946]
[1759155158003,0.00044,113780.0,113770.0,1.02471946]
[1759155158203,0.00044,113780.0,113770.0,1.02467946]
[1759155158400,0.36124,113780.0,113770.0,1.02467946]
[1759155158614,0.36124,113780.0,113770.0,0.9939281]
[1759155159403,0.36124,113780.0,113770.0,0.15427946]
[1759155159605,0.00044,113780.0,113770.0,0.9938881]
[1759155159808,0.36124,113780.0,113770.0,0.1235281]
[1759155160008,0.00044,113780.0,113770.0,0.1235281]
[1759155160311,0.36124,113780.0,113770.0,0.1235281]
[1759155160806,0.4490805,113780.0,113770.0,0.1235281]
[1759155161006,1.28415607,113780.0,113770.0,0.01379]
[1759155161311,1.28415607,113780.0,113770.0,0.1016382]
[1759155161612,1.28415607,113780.0,113770.0,0.1235282]
[1759155161811,0.4490805,113780.0,113770.0,0.1235282]
[1759155162612,0.4490805,113780.0,113770.0,0.03568]
[1759155163313,0.88415607,113780.0,113770.0,0.03568]
[1759155163809,0.36124,113780.0,113770.0,0.1235282]
[1759155164114,0.36084,113780.0,113770.0,0.1235282]
[1759155164412,0.36124,113780.0,113770.0,0.1235282]
[1759155164613,0.36084,113780.0,113770.0,0.1235282]
[1759155164809,0.36124,113780.0,113770.0,0.1235282]
[1759155165113,0.4490805,113780.0,113770.0,0.1235282]
[1759155166411,0.4490805,113780.0,113770.0,0.15427956]
[1759155167113,0.36124,113780.0,113770.0,0.17731183]
[1759155168009,0.4490799,113780.0,113770.0,0.17731183]
[1759155168216,1.28415547,113780.0,113770.0,0.08946363]
[1759155168718,1.28415547,113780.0,113770.0,0.03682227]
[1759155168917,1.28415547,113780.0,113770.0,0.06757363]
[1759155169415,1.19631557,113780.0,113770.0,0.17707163]
[1759155169918,0.36124,113780.0,113770.0,0.15403936]
[1759155170113,4e-05,113780.0,113770.0,0.20007663]
[1759155170315,0.00044,113780.0,113770.0,0.20007663]
[1759155170612,4e-05,113780.0,113770.0,0.16932527]
[1759155170816,0.00044,113780.0,113770.0,0.53012527]
[1759155171116,4e-05,113780.0,113770.0,0.53012527]
[1759155171316,0.00044,113780.0,113770.0,0.53012527]
[1759155171519,4e-05,113780.0,113770.0,0.53012527]
[1759155171811,0.00044,113780.0,113770.0,0.53012527]
[1759155172020,0.00044,113780.0,113770.0,1.39980527]
[1759155172312,0.00084,113800.0,113790.0,0.03479]
[1759155172512,4e-05,113800.0,113790.0,1.38376699]
[1759155172713,0.00044,113800.0,113790.0,1.38376699]
[1759155174912,0.00044,113800.0,113790.0,1.3925411]
[1759155175313,0.36889384,113820.0,113810.0,0.1226063]
[1759155175717,0.89177801,113820.0,113810.0,0.01314]
[1759155175920,0.45670244,113820.0,113810.0,0.1226063]
[1759155176121,0.36889384,113820.0,113810.0,0.1226063]
[1759155176312,0.45670244,113820.0,113810.0,0.1226063]
[1759155176620,0.45670244,113820.0,113810.0,0.03479]
[1759155176818,0.45710294,113820.0,113810.0,0.1226068]
[1759155177015,0.36929384,113820.0,113810.0,0.1226068]
[1759155177218,0.21929384,113820.0,113810.0,0.1226068]
[1759155177618,0.21929384,113820.0,113810.0,0.0878168]
[1759155177823,0.74217851,113820.0,113810.0,0.1226068]
[1759155178014,0.30710294,113820.0,113810.0,0.1226068]
[1759155178215,1.14217851,113820.0,113810.0,0.03479]
[1759155178524,1.14217851,113820.0,113810.0,0.1226068]
[1759155179615,1.14217851,113820.0,113810.0,0.01314]
[1759155180220,1.05737309,113820.0,113810.0,0.01314]
[1759155180811,1.05737309,113820.0,113810.0,0.1009571]
[1759155181018,1.40764324,113820.0,113810.0,0.01314]
[1759155181918,0.0878171,113810.0,113800.0,0.01314]
[1759155182121,0.0878248,113800.0,113790.0,0.1009724]
[1759155182430,0.79889495,113800.0,113790.0,0.01314]
[1759155182720,1.19889495,113800.0,113790.0,0.01314]
[1759155183020,1.19889495,113800.0,113790.0,0.1226225]
[1759155183218,0.71107015,113800.0,113790.0,0.1226225]
[1759155183418,0.4486223,113810.0,113800.0,0.1226148]
[1759155183725,1.66801245,113810.0,113800.0,0.01314]
[1759155184025,2.06761245,113810.0,113800.0,0.01314]
[1759155184225,2.06761245,113810.0,113790.0,0.01314]
[1759155184226,0.0878248,113800.0,113790.0,0.01314]
[1759155184425,0.88371275,113800.0,113790.0,0.01314]
[1759155184626,0.88371275,113800.0,113790.0,0.1009725]
[1759155184822,0.0004,113810.0,113800.0,0.1226148]
[1759155185123,0.88369765,113820.0,113810.0,0.01314]
[1759155185321,1.24449765,113820.0,113810.0,0.01314]
[1759155185517,1.24449765,113820.0,113810.0,0.1009571]
[1759155185518,2.11309765,113820.0,113810.0,0.1009571]
[1759155185712,2.11309765,113820.0,113810.0,0.01314]
[1759155187124,2.11301765,113820.0,113810.0,0.01314]
[1759155187720,0.0878171,113810.0,113800.0,0.01314]
[1759155187921,0.88370505,113810.0,113800.0,0.01314]
[1759155188320,1.28370505,113810.0,113800.0,0.01314]
[1759155188517,0.0878248,113800.0,113790.0,0.01314]
[1759155188717,1.75207275,113800.0,113790.0,0.01314]
[1759155189127,0.0878325,113790.0,113780.0,0.03617968]
[1759155189328,0.88372045,113790.0,113780.0,0.03617968]
[1759155190232,1.75204045,113790.0,113780.0,0.03617968]
[1759155190924,0.88372045,113790.0,113780.0,0.03617968]
[1759155191128,1.75192045,113790.0,113780.0,0.03617968]
[1759155191431,1.3168725,113790.0,113780.0,0.14566988]
[1759155191629,1.75196045,113790.0,113780.0,0.14566988]
[1759155191823,1.75192045,113790.0,113780.0,0.14566988]
[1759155192029,1.3172325,113790.0,113780.0,0.14566988]
[1759155192229,0.88412045,113790.0,113780.0,0.14566988]
[1759155192430,1.75228045,113790.0,113780.0,0.14566988]
[1759155192931,1.75228045,113790.0,113780.0,0.03617968]
[1759155194629,1.28412045,113790.0,113780.0,0.03617968]
[1759155194830,2.15224045,113790.0,113780.0,0.03617968]
[1759155195629,1.75208045,113790.0,113780.0,0.12401988]
[1759155195835,1.75208045,113790.0,113780.0,0.03617968]
[1759155196133,1.75208045,113790.0,113780.0,0.14604988]
[1759155196527,0.88372045,113790.0,113780.0,0.14604988]
[1759155196729,0.88412045,113790.0,113780.0,0.14604988]
[1759155197021,1.75200045,113790.0,113780.0,0.14604988]
[1759155197225,1.75200045,113790.0,113780.0,0.08895417]
[1759155197435,1.75200045,113790.0,113780.0,0.03617968]
[1759155198029,1.75196045,113790.0,113780.0,0.05820968]
[1759155198333,1.66412795,113790.0,113780.0,0.14604988]
[1759155198530,0.3608,113790.0,113780.0,0.17679437]
[1759155198732,1.229,113790.0,113780.0,0.14604988]
[1759155199127,1.3168325,113790.0,113780.0,0.17679437]
[1759155199332,0.88412045,113790.0,113780.0,0.17679437]
[1759155199527,0.79628795,113790.0,113780.0,0.17766437]
[1759155199836,1.75184045,113790.0,113780.0,0.17766437]
[1759155200232,0.79628795,113790.0,113780.0,0.17766437]
[1759155200535,1.66356795,113790.0,113780.0,0.17766437]
[1759155200736,1.66356795,113790.0,113780.0,0.15462469]
[1759155200737,1.75180045,113790.0,113780.0,0.15462469]
[1759155201234,1.75180045,113790.0,113780.0,0.06678449]
[1759155201429,1.75180045,113790.0,113780.0,0.04475449]
[1759155201630,1.39092045,113790.0,113780.0,0.15515469]
[1759155201831,0.43548795,113790.0,113780.0,0.15515469]
[1759155202033,0.9553925,113790.0,113780.0,0.15515469]
[1759155202342,0.9557925,113790.0,113780.0,0.15515469]
[1759155203339,1.39088045,113790.0,113780.0,0.15515469]
[1759155203838,1.39088045,113790.0,113780.0,0.1244102]
[1759155204037,1.39088045,113790.0,113780.0,0.14745622]
[1759155204241,0.9557925,113790.0,113780.0,0.14745622]
[1759155205632,1.3165925,113790.0,113780.0,0.05961602]
[1759155206033,1.75140045,113790.0,113780.0,0.14745622]
[1759155206236,1.75140045,113790.0,113780.0,0.05961602]
[1759155206640,1.75140045,113790.0,113780.0,0.14745622]
[1759155208433,1.75140045,113790.0,113780.0,0.05961602]
[1759155208744,1.75140045,113790.0,113780.0,0.03705602]
[1759155209932,2.15140045,113790.0,113780.0,0.03705602]
[1759155210442,1.7163125,113790.0,113780.0,0.03705602]
[1759155210737,2.15140045,113790.0,113780.0,0.12489652]
[1759155211344,2.15140045,113790.0,113780.0,0.03705602]
[1759155213039,1.28412045,113790.0,113780.0,0.03705602]
[1759155213240,1.28412045,113790.0,113780.0,0.01401]
[1759155213241,2.15092045,113790.0,113780.0,0.01401]
[1759155215939,0.0878405,113780.0,113770.0,0.05379051]
[1759155216140,0.88372845,113780.0,113770.0,0.02304602]
[1759155216347,1.28372845,113780.0,113770.0,0.02304602]
[1759155217648,0.0878482,113770.0,113760.0,0.04434449]
[1759155217840,1.75025615,113770.0,113760.0,0.04434449]
[1759155218447,0.9965508,113770.0,113760.0,0.04434449]
[1759155218637,1.8629508,113770.0,113760.0,0.0136]
[1759155218834,0.9965508,113770.0,113760.0,0.1014559]
[1759155219035,0.9965508,113770.0,113760.0,0.13220039]
[1759155219036,1.8629508,113770.0,113760.0,0.13220039]
[1759155219548,1.8717776,113770.0,113760.0,0.13220039]
[1759155219748,1.8717776,113770.0,113760.0,0.04434449]
[1759155220043,1.8717776,113770.0,113760.0,0.0136]
[1759155220249,2.2717776,113770.0,113760.0,0.0136]
[1759155220550,1.8717776,113770.0,113760.0,0.0136]
[1759155221843,1.0053776,113770.0,113760.0,0.00046]
[1759155222046,1.8715776,113770.0,113760.0,0.01379]
[1759155222245,1.0053776,113770.0,113760.0,0.01379]
[1759155222445,1.8715776,113770.0,113760.0,0.01379]
[1759155222645,1.0053776,113770.0,113760.0,0.01379]
[1759155222850,1.8715776,113770.0,113760.0,0.01379]
[1759155223152,1.8715376,113770.0,113760.0,0.01379]
[1759155223340,1.0053776,113770.0,113760.0,0.01379]
[1759155223545,0.3612,113770.0,113760.0,0.5242059]
[1759155223850,1.7751826,113770.0,113760.0,0.55495039]
[1759155224040,0.9087026,113770.0,113760.0,0.55495039]
[1759155224242,0.9973493,113780.0,113770.0,0.1237376]
[1759155224449,1.8625893,113780.0,113770.0,0.03589]
[1759155224943,0.9965493,113780.0,113770.0,0.03589]
[1759155225144,0.9965493,113780.0,113770.0,0.5237376]
[1759155225145,0.4490467,113780.0,113770.0,0.5237376]
[1759155225345,1.3150067,113780.0,113770.0,0.5237376]
[1759155225647,1.5021093,113780.0,113770.0,0.5237376]
[1759155226048,0.5483026,113780.0,113770.0,0.5237376]
[1759155226353,0.86632,113780.0,113770.0,0.5237376]
[1759155226549,0.9541602,113780.0,113770.0,0.5237376]
[1759155227142,0.86632,113780.0,113770.0,0.5237376]
[1759155227351,1.4142226,113780.0,113770.0,0.8845376]
[1759155228353,1.4142226,113780.0,113770.0,0.91528209]
[1759155229154,0.0004,113780.0,113770.0,1.46318469]
[1759155229552,0.5304488,113790.0,113780.0,0.1234501]
[1759155229752,1.0694626,113790.0,113780.0,0.4842501]
[1759155229957,1.07805929,113790.0,113780.0,0.1234501]
[1759155230257,0.64433159,113790.0,113780.0,0.1234501]
[1759155230558,1.50993159,113790.0,113780.0,0.1234501]
[1759155231256,1.50993159,113790.0,113780.0,0.03561]
[1759155231457,1.87073159,113790.0,113780.0,0.12345]
[1759155232853,1.82073159,113790.0,113780.0,0.12345]
[1759155233049,1.82045159,113790.0,113780.0,0.12345]
[1759155234358,1.82045159,113790.0,113780.0,0.03561]
[1759155234557,1.82045159,113790.0,113780.0,0.12345]
[1759155235058,1.82045159,113790.0,113780.0,0.03561]
[1759155235260,1.82045159,113790.0,113780.0,0.01292]
[1759155236059,1.82025159,113790.0,113780.0,0.12345]
[1759155236251,0.95513159,113790.0,113780.0,0.12345]
[1759155236452,1.82017159,113790.0,113780.0,0.12345]
[1759155236959,0.86729929,113790.0,113780.0,0.12345]
[1759155237160,1.23435669,113790.0,113780.0,0.12345]
[1759155237361,0.36939669,113790.0,113780.0,0.12345]
[1759155237560,1.23435669,113790.0,113780.0,0.12345]
[1759155237753,1.23471669,113790.0,113780.0,0.12345]
[1759155238462,0.3612,113790.0,113780.0,0.12345]
[1759155238757,0.0004,113790.0,113780.0,0.12345]
[1759155238955,0.86524,113790.0,113780.0,0.12345]
[1759155239156,0.0004,113790.0,113780.0,0.52345]
[1759155239562,1.87022423,113800.0,113790.0,0.1007522]
[1759155239757,1.00626423,113800.0,113790.0,0.1234422]
[1759155240065,1.87022423,113800.0,113790.0,0.1234422]
[1759155240359,1.87062423,113800.0,113790.0,0.1234422]
[1759155240561,1.42199273,113800.0,113790.0,0.1234422]
[1759155240761,1.42187273,113800.0,113790.0,0.4842422]
[1759155241063,1.50969723,113800.0,113790.0,0.4842422]
[1759155241465,1.50969723,113800.0,113790.0,0.1234422]
[1759155242264,1.66249355,113800.0,113790.0,0.1234422]
[1759155242465,1.66249355,113800.0,113790.0,0.4842422]
[1759155242663,0.35074946,113800.0,113790.0,0.4932197]
[1759155242958,1.22528,113810.0,113800.0,0.1234345]
[1759155243160,1.66424626,113810.0,113800.0,0.1234345]
[1759155243360,1.66420626,113810.0,113800.0,0.47378396]
[1759155243667,1.57598946,113810.0,113800.0,0.1234345]
[1759155243866,1.57598946,113810.0,113800.0,0.47378396]
[1759155244066,0.71154946,113810.0,113800.0,0.87378396]
[1759155244263,0.4490157,113810.0,113800.0,0.5234345]
[1759155244565,0.4486157,113810.0,113800.0,0.5234345]
[1759155244766,0.4490157,113810.0,113800.0,0.5234345]
[1759155245464,0.0882157,113810.0,113800.0,0.5234345]
[1759155246460,0.0004,113810.0,113800.0,0.5234345]
[1759155246661,0.0004,113810.0,113800.0,0.8842345]
[1759155247561,1.86959361,113820.0,113810.0,0.1234257]
[1759155247760,1.86955361,113820.0,113810.0,0.1234257]
[1759155248161,1.00555361,113820.0,113810.0,0.1234257]
[1759155248366,1.86065788,113820.0,113810.0,0.1234257]
[1759155248563,1.49985788,113820.0,113810.0,0.1234257]
[1759155249767,0.9525685,113820.0,113810.0,0.1234257]
[1759155249967,0.63589788,113820.0,113810.0,0.1234257]
[1759155250169,0.9524085,113820.0,113810.0,0.1234257]
[1759155250563,1.49969788,113820.0,113810.0,0.1234257]
[1759155250769,1.49965788,113820.0,113810.0,0.1234257]
[1759155251862,1.49965788,113820.0,113810.0,0.4842257]
[1759155252767,0.0008,113820.0,113810.0,0.4842257]
[1759155252956,0.3608,113830.0,113820.0,0.1234179]
[1759155253159,0.4518287,113850.0,113840.0,0.1234025]
[1759155253370,0.36404,113850.0,113840.0,0.1234025]
[1759155253571,1.49851418,113850.0,113840.0,0.1234025]
[1759155253767,0.9516249,113850.0,113840.0,0.1234025]
[1759155254073,1.49851428,113850.0,113840.0,0.1234025]
[1759155254374,0.00044,113850.0,113840.0,0.8842025]
[1759155254567,0.54732938,113850.0,113840.0,0.8842025]
[1759155254768,0.54772938,113850.0,113840.0,0.8842025]
[1759155254967,0.54772938,113850.0,113840.0,0.89276442]
[1759155255273,0.00044,113850.0,113840.0,0.8842025]
[1759155255973,4e-05,113850.0,113840.0,0.8842025]
[1759155256170,0.0882248,113850.0,113840.0,0.8842025]
[1759155256573,0.63551418,113850.0,113840.0,0.8842025]
[1759155257770,0.54772938,113850.0,113840.0,0.8842025]
[1759155258572,0.00044,113850.0,113840.0,0.8842025]
[1759155259065,4e-05,113850.0,113840.0,0.8842025]
[1759155259268,0.00044,113850.0,113840.0,0.8842025]
[1759155259866,0.00044,113850.0,113840.0,0.90464811]
[1759155260264,0.54772938,113850.0,113840.0,0.90464811]
[1759155260872,0.54772938,113850.0,113840.0,1.76732811]
[1759155261262,0.54772938,113850.0,113840.0,1.76728811]
[1759155261467,0.54772938,113850.0,113840.0,1.36720811]
[1759155261665,0.63551428,113850.0,113840.0,0.41685561]
[1759155261870,0.99631428,113850.0,113840.0,0.03561]
[1759155262375,0.99631428,113850.0,113840.0,0.1234026]
[1759155263973,0.4490249,113850.0,113840.0,0.1234026]
[1759155264174,0.99631428,113850.0,113840.0,0.1234026]
[1759155264676,0.90852938,113850.0,113840.0,0.1234026]
[1759155264974,0.54772938,113850.0,113840.0,0.1234026]
[1759155265171,0.00044,113850.0,113840.0,0.1234026]
[1759155265369,0.00044,113850.0,113840.0,0.8842026]
[1759155266268,0.35041985,113850.0,113840.0,1.23418245]
[1759155266464,0.35041985,113850.0,113840.0,0.8842026]
[1759155266669,0.35041985,113850.0,113840.0,0.4842026]
[1759155267275,0.00044,113850.0,113840.0,0.4842026]
[1759155267575,0.35041985,113850.0,113840.0,0.4842026]
[1759155268475,0.35041985,113850.0,113840.0,0.83418245]
[1759155268675,0.00044,113850.0,113840.0,0.83418245]
[1759155268875,0.35041985,113850.0,113840.0,0.83418245]
[1759155270071,0.00044,113850.0,113840.0,0.83418245]
[1759155270468,4e-05,113850.0,113840.0,0.83418245]
[1759155270668,0.00044,113850.0,113840.0,0.83418245]
[1759155271072,4e-05,113850.0,113840.0,0.83418245]
[1759155271281,0.35041985,113850.0,113840.0,0.83418245]
[1759155271468,0.35041985,113850.0,113840.0,1.69582245]
[1759155271970,0.00044,113850.0,113840.0,1.69582245]
[1759155272171,0.35041985,113850.0,113840.0,0.83418245]
[1759155272372,0.00044,113850.0,113840.0,1.69578245]
[1759155272581,0.35041985,113850.0,113840.0,1.69578245]
[1759155272877,0.00044,113850.0,113840.0,2.0457623]
[1759155273476,0.35041985,113850.0,113840.0,1.69578245]
[1759155274081,4e-05,113850.0,113840.0,1.69578245]
[1759155274277,0.35041985,113850.0,113840.0,1.69578245]
[1759155274576,0.00044,113850.0,113840.0,2.0457623]
[1759155274780,0.00044,113850.0,113840.0,1.3458026]
[1759155274976,0.00044,113850.0,113840.0,1.69578245]
[1759155274977,0.35001985,113850.0,113840.0,1.69578245]
[1759155275280,0.35041985,113850.0,113840.0,1.69578245]
[1759155275476,0.00044,113850.0,113840.0,2.4457623]
[1759155275677,0.3616,113870.0,113860.0,0.1224371]
[1759155275883,0.3616,113870.0,113860.0,0.47241695]
[1759155275884,0.35077985,113870.0,113860.0,0.47241695]
[1759155276078,0.43774925,113870.0,113860.0,0.47241695]
[1759155276383,0.43814925,113870.0,113860.0,0.1224371]
[1759155277880,0.4467322,113870.0,113860.0,0.1224371]
[1759155278275,0.35025597,113870.0,113860.0,0.4832371]
[1759155278476,0.43802537,113870.0,113860.0,0.1224371]
[1759155279576,0.44665974,113870.0,113860.0,0.1224371]
[1759155279776,0.0881694,113870.0,113860.0,0.1224371]
[1759155280080,0.35025597,113870.0,113860.0,0.1224371]
[1759155281079,0.0004,113870.0,113860.0,0.8832371]
[1759155281278,0.0004,113870.0,113860.0,1.23309307]
[1759155281485,0.03159914,113890.0,113880.0,0.1224221]
[1759155281782,0.38225511,113890.0,113880.0,0.4832221]
[1759155282375,0.39121206,113890.0,113880.0,0.4832221]
[1759155282576,0.38225511,113890.0,113880.0,0.4832221]
[1759155283983,0.38145511,113890.0,113880.0,0.4832221]
[1759155284174,0.38185511,113890.0,113880.0,0.4832221]
[1759155284580,0.38145511,113890.0,113880.0,0.49632309]
[1759155284784,0.38185511,113890.0,113880.0,0.49632309]
[1759155285282,0.35025597,113890.0,113880.0,0.49632309]
[1759155285479,0.34985597,113890.0,113880.0,0.4832221]
[1759155285683,0.35025597,113890.0,113880.0,0.4832221]
[1759155286589,0.38145511,113890.0,113880.0,0.4832221]
[1759155286787,0.38185511,113890.0,113880.0,0.4832221]
[1759155287079,0.34985597,113890.0,113880.0,0.4832221]
[1759155287285,0.35025597,113890.0,113880.0,0.4832221]
[1759155287484,0.35025597,113890.0,113880.0,1.3433821]
[1759155288376,0.0004,113890.0,113880.0,1.3433821]
[1759155288578,0.35025597,113890.0,113880.0,0.4832221]
[1759155288974,0.38185511,113890.0,113880.0,0.4832221]
[1759155289279,0.38185511,113890.0,113880.0,0.13550259]
[1759155289477,0.35025597,113890.0,113880.0,0.13550259]
[1759155289673,0.35025597,113890.0,113880.0,0.49630259]
[1759155289878,0.35025597,113890.0,113880.0,0.4832221]
[1759155290078,0.04840153,113900.0,113890.0,0.1230644]
[1759155290286,0.3990575,113900.0,113890.0,0.1230644]
[1759155290489,0.8476042,113900.0,113890.0,0.03531]
[1759155290683,0.8476042,113900.0,113890.0,0.13611064]
[1759155291976,0.49774823,113900.0,113890.0,0.13611064]
[1759155292284,1.6195375,113900.0,113890.0,0.13611064]
[1759155292587,0.7590575,113900.0,113890.0,0.13611064]
[1759155292887,0.8472042,113900.0,113890.0,0.13611064]
[1759155293289,0.86277657,113900.0,113890.0,0.13611064]
[1759155294191,1.59700985,113900.0,113890.0,0.02591624]
[1759155294486,1.56546103,113900.0,113890.0,0.02591624]
[1759155294684,1.56546103,113900.0,113890.0,0.01287]
[1759155294685,1.59701089,113900.0,113890.0,0.01287]
[1759155295091,1.59701089,113900.0,113890.0,0.02597107]
[1759155295282,1.59701089,113900.0,113890.0,0.02597157]
[1759155295478,1.59701089,113900.0,113890.0,0.01287]
[1759155295685,1.59701089,113900.0,113890.0,0.0260091]
[1759155295887,1.56546103,113900.0,113890.0,0.0268791]
[1759155296189,0.0877544,113890.0,113880.0,0.01296]
[1759155296384,2.05496018,113890.0,113880.0,0.02605046]
[1759155296585,2.45496018,113890.0,113880.0,0.11381256]
[1759155297492,2.45496018,113890.0,113880.0,0.13625256]
[1759155297692,2.45480018,113890.0,113880.0,0.13625256]
[1759155297993,2.45476018,113890.0,113880.0,0.13625256]
[1759155298193,2.45476018,113890.0,113880.0,0.13625156]
[1759155298683,1.59560018,113890.0,113880.0,0.13625156]
[1759155298886,2.45468018,113890.0,113880.0,0.13625156]
[1759155299390,2.45468018,113890.0,113880.0,0.02605046]
[1759155299593,1.59560018,113890.0,113880.0,0.11381276]
[1759155299794,2.45464018,113890.0,113880.0,0.02605046]
[1759155300388,0.89588824,113890.0,113880.0,0.13625266]
[1759155300691,0.07889813,113890.0,113880.0,0.1231622]
[1759155300893,0.38142026,113890.0,113880.0,0.1231622]
[1759155301093,1.24030026,113890.0,113880.0,0.1231622]
[1759155301394,0.38186026,113890.0,113880.0,0.1231622]
[1759155301887,1.24070026,113890.0,113880.0,0.1231622]
[1759155302094,1.32845476,113890.0,113880.0,0.1231622]
[1759155302788,0.97859879,113890.0,113880.0,0.1231622]
[1759155302988,0.11975879,113890.0,113880.0,0.1231622]
[1759155303196,1.32833476,113890.0,113880.0,0.1231622]
[1759155303489,1.2879141,113890.0,113880.0,0.1231622]
[1759155303790,0.4291941,113890.0,113880.0,0.1231622]
[1759155304096,0.39762981,113890.0,113880.0,0.4839622]
[1759155304883,0.42920301,113890.0,113880.0,0.4839622]
[1759155305292,0.39762981,113890.0,113880.0,0.4839622]
[1759155305492,0.39722981,113890.0,113880.0,0.4839622]
[1759155305693,0.39762981,113890.0,113880.0,0.4839622]
[1759155305889,0.48538411,113890.0,113880.0,0.1231622]
[1759155306090,0.39762981,113890.0,113880.0,0.1231622]
[1759155306489,0.38187574,113890.0,113880.0,0.1231622]
[1759155307093,0.38187574,113890.0,113880.0,0.8839622]
[1759155307493,0.03161977,113890.0,113880.0,0.8839622]
[1759155307692,0.38187574,113890.0,113880.0,0.8839622]
[1759155309194,0.39762981,113890.0,113880.0,0.8839622]
[1759155309695,0.07936212,113890.0,113880.0,0.8839622]
[1759155309898,0.42921809,113890.0,113880.0,0.8839622]
[1759155310101,0.35029597,113890.0,113880.0,0.91470669]
[1759155310398,0.00044,113890.0,113880.0,0.93767425]
[1759155310702,0.35029597,113890.0,113880.0,0.93767425]
[1759155311001,0.34989597,113890.0,113880.0,0.93767425]
[1759155311201,0.35029597,113890.0,113880.0,0.90692976]